[Event "FIDE WYCC Girls U14 2023"]
[Site "Montesilvano"]
[Date "2023.11.18"]
[Round "6.17"]
[White "Montano Vicente, Guadalupe"]
[Black "Suyamin, Bonjoure Fille"]
[Result "*"]
[ECO "E71"]
[WhiteElo "1794"]
[BlackElo "1570"]
[Annotator "NA"]
[PlyCount "70"]
[EventDate "2023.11.13"]
[EventType "swiss"]
[EventCountry "ITA"]
[SourceTitle "playchess.com"]
[Source "ChessBase"]
[SourceQuality "1"]
[TimeControl "40/5400+30:1800+30"]

1. d4 {[%emt 0:00:03]} Nf6 {[%emt 0:00:06]} 2. c4 {[%emt 0:00:04]} g6 {[%emt 0:00:11]} 3. Nc3 {[%emt 0:00:04]} Bg7 {[%emt 0:00:10]} 4. e4 {[%emt 0:00:04]} d6 {[%emt 0:00:10]} 5. h3 {[%emt 0:00:03]} Nbd7 {[%emt 0:00:16]} 6. Nf3 {[%emt 0:00:29]} O-O {[%emt 0:00:13]} 7. Be3 {[%emt 0:00:08]} e5 {[%emt 0:01:52]} 8. d5 {[%emt 0:01:10]} b6 {[%emt 0:01:37]} 9. Be2 {[%emt 0:04:27]} Nc5 {[%emt 0:01:44]} 10. Nd2 {[%emt 0:02:14]} a5 {[%emt 0:00:18]} 11. g4 {[%emt 0:03:25]} Ne8 {[%emt 0:03:16]} 12. g5 {[%emt 0:06:44]} f5 {[%emt 0:02:34]} 13. gxf6 {[%emt 0:00:23]} Bxf6 {[%emt 0:12:21]} 14. Nf3 {[%emt 0:05:08]} Ng7 {[%emt 0:03:05]} 15. Bh6 {[%emt 0:15:55]} Bh4 {[%emt 0:07:01]} 16. Qd2 {[%emt 0:06:47]} Qf6 {[%emt 0:06:07]} 17. Rh2 {[%emt 0:16:48]} g5 {[%emt 0:08:15]} 18. Bxg5 {[%emt 0:03:31]} Bxg5 {[%emt 0:00:13]} 19. Nxg5 {[%emt 0:01:48]} Qf4 {[%emt 0:01:18]} 20. Rg2 {[%emt 0:02:22]} h6 {[%emt 0:03:37]} 21. Qxf4 {[%emt 0:03:04]} Rxf4 {[%emt 0:00:39]} 22. Ne6 {[%emt 0:01:40]} Ncxe6 {[%emt 0:01:26]} 23. dxe6 {[%emt 0:00:04]} Bxe6 {[%emt 0:00:07]} 24. Kd2 {[%emt 0:02:27]} Raf8 {[%emt 0:00:59]} 25. Rag1 {[%emt 0:02:33]} R8f7 {[%emt 0:00:15]} 26. Rg6 {[%emt 0:02:54]} Kh7 {[%emt 0:02:31]} 27. Ke3 {[%emt 0:03:04]} Rh4 {[%emt 0:01:24]} 28. Nd5 {[%emt 0:05:28]} Rxh3+ {[%emt 0:02:23]} 29. f3 {[%emt 0:01:08]} Bxd5 {[%emt 0:01:54]} 30. cxd5 {[%emt 0:00:01]} Nh5 {[%emt 0:00:46]} 31. Rg8 {[%emt 0:01:57]} Nf4 {[%emt 0:03:20]} 32. Ba6 {[%emt 0:06:28]} Rh2 {[%emt 0:02:18]} 33. R8g3 {[%emt 0:00:46]} Rxb2 {[%emt 0:00:30]} 34. a4 {[%emt 0:00:42]} Rh2 {[%emt 0:05:33]} 35. Bb5 {[%emt 0:00:55]} Ra2 {[%emt 0:07:41]} *

[Event "FIDE WYCC Girls U14 2023"]
[Site "Montesilvano"]
[Date "2023.11.18"]
[Round "6.18"]
[White "Lorenz, Veronika"]
[Black "Chasouraki, Chrysi"]
[Result "*"]
[ECO "B40"]
[WhiteElo "1791"]
[BlackElo "1559"]
[Annotator "NA"]
[PlyCount "76"]
[EventDate "2023.11.13"]
[EventType "swiss"]
[EventCountry "ITA"]
[SourceTitle "playchess.com"]
[Source "ChessBase"]
[SourceQuality "1"]
[TimeControl "40/5400+30:1800+30"]

1. e4 {[%emt 0:00:02]} c5 {[%emt 0:01:10]} 2. Nf3 {[%emt 0:00:05]} e6 {[%emt 0:00:06]} 3. g3 {[%emt 0:00:08]} d5 {[%emt 0:00:04]} 4. exd5 {[%emt 0:00:19]} exd5 {[%emt 0:00:07]} 5. d4 {[%emt 0:01:29]} cxd4 {[%emt 0:00:06]} 6. Nxd4 {[%emt 0:03:39]} Nc6 {[%emt 0:00:07]} 7. Bg2 {[%emt 0:01:10]} Bc5 {[%emt 0:02:06]} 8. Be3 {[%emt 0:10:01]} Nxd4 {[%emt 0:10:35]} 9. Bxd4 {[%emt 0:00:20]} Qe7+ {[%emt 0:00:10]} 10. Kf1 {[%emt 0:00:46]} Bxd4 {[%emt 0:05:01]} 11. Qxd4 {[%emt 0:00:06]} Nf6 {[%emt 0:00:12]} 12. Nc3 {[%emt 0:05:35]} O-O {[%emt 0:09:02]} 13. Re1 {[%emt 0:12:53]} Qc7 {[%emt 0:04:27]} 14. Nxd5 {[%emt 0:13:59]} Nxd5 {[%emt 0:00:23]} 15. Bxd5 {[%emt 0:01:28]} Bh3+ {[%emt 0:09:26]} 16. Bg2 {[%emt 0:00:26]} Bxg2+ {[%emt 0:01:10]} 17. Kxg2 {[%emt 0:00:01]} Qxc2 {[%emt 0:05:58]} 18. Rc1 {[%emt 0:07:03]} Qg6 {[%emt 0:02:15]} 19. Rc7 {[%emt 0:01:44]} Rad8 {[%emt 0:05:31]} 20. Qb4 {[%emt 0:00:17]} b5 {[%emt 0:02:43]} 21. Rhc1 {[%emt 0:03:28]} a5 {[%emt 0:07:44]} 22. Qxb5 {[%emt 0:03:24]} Qe4+ {[%emt 0:03:09]} 23. Kg1 {[%emt 0:00:33]} Qb4 {[%emt 0:13:55]} 24. Qxb4 {[%emt 0:06:08]} axb4 {[%emt 0:00:01]} 25. Rb7 {[%emt 0:00:11]} Rb8 {[%emt 0:03:44]} 26. Rcc7 {[%emt 0:00:27]} Ra8 {[%emt 0:01:02]} 27. Rxb4 {[%emt 0:00:43]} Rxa2 {[%emt 0:00:07]} 28. Rbb7 {[%emt 0:00:08]} Raa8 {[%emt 0:00:36]} 29. b4 {[%emt 0:00:20]} g6 {[%emt 0:01:20]} 30. b5 {[%emt 0:00:15]} Rab8 {[%emt 0:01:17]} 31. Rxf7 {[%emt 0:01:25]} Rxf7 {[%emt 0:01:45]} 32. Rxb8+ {[%emt 0:00:02]} Kg7 {[%emt 0:00:05]} 33. b6 {[%emt 0:00:11]} Kf6 {[%emt 0:00:35]} 34. b7 {[%emt 0:00:38]} Kf5 {[%emt 0:02:15]} 35. f3 {[%emt 0:02:01]} Kg5 {[%emt 0:00:31]} 36. Kf2 {[%emt 0:00:58]} Re7 {[%emt 0:00:25]} 37. h3 {[%emt 0:03:47]} Kh5 {[%emt 0:02:24]} 38. h4 {[%emt 0:00:46]} h6 {[%emt 0:03:22]} *

[Event "FIDE WYCC Girls U14 2023"]
[Site "Montesilvano"]
[Date "2023.11.18"]
[Round "6.19"]
[White "Valente, Sofia"]
[Black "Stankovic, Andrea"]
[Result "*"]
[WhiteElo "1604"]
[BlackElo "1768"]
[Annotator "NA"]
[PlyCount "82"]
[EventDate "2023.11.13"]
[EventType "swiss"]
[EventCountry "ITA"]
[SourceTitle "playchess.com"]
[Source "ChessBase"]
[SourceQuality "1"]
[TimeControl "40/5400+30:1800+30"]

1. d4 {[%emt 0:00:06]} e6 {[%emt 0:00:04]} 2. c4 {[%emt 0:00:04]} Nf6 {[%emt 0:00:05]} 3. Nc3 {[%emt 0:00:06]} Bb4 {[%emt 0:00:04]} 4. Qc2 {[%emt 0:00:40]} Bxc3+ {[%emt 0:03:12]} 5. Qxc3 {[%emt 0:00:37]} d6 {[%emt 0:01:23]} 6. Nf3 {[%emt 0:00:34]} b6 {[%emt 0:01:49]} 7. Bg5 {[%emt 0:06:00]} h6 {[%emt 0:00:21]} 8. Bxf6 {[%emt 0:00:23]} gxf6 {[%emt 0:02:10]} 9. g3 {[%emt 0:01:05]} Bb7 {[%emt 0:01:12]} 10. Bg2 {[%emt 0:00:40]} Nd7 {[%emt 0:00:56]} 11. O-O {[%emt 0:03:17]} f5 {[%emt 0:02:49]} 12. c5 {[%emt 0:02:53]} bxc5 {[%emt 0:04:21]} 13. dxc5 {[%emt 0:02:45]} Qf6 {[%emt 0:00:07]} 14. c6 {[%emt 0:00:26]} Qxc3 {[%emt 0:01:00]} 15. cxd7+ {[%emt 0:00:13]} Kxd7 {[%emt 0:00:14]} 16. bxc3 {[%emt 0:00:04]} Rab8 {[%emt 0:01:14]} 17. Nd4 {[%emt 0:06:55]} Ba6 {[%emt 0:00:43]} 18. Bc6+ {[%emt 0:00:55]} Ke7 {[%emt 0:00:20]} 19. Bf3 {[%emt 0:05:30]} Kf6 {[%emt 0:00:29]} 20. Rfe1 {[%emt 0:03:14]} e5 {[%emt 0:02:24]} 21. Nc6 {[%emt 0:00:45]} Rb2 {[%emt 0:01:45]} 22. Nb4 {[%emt 0:09:38]} Bc4 {[%emt 0:00:26]} 23. e4 {[%emt 0:13:48]} c5 {[%emt 0:03:04]} 24. Nd5+ {[%emt 0:01:30]} Bxd5 {[%emt 0:00:46]} 25. exd5 {[%emt 0:00:11]} Rhb8 {[%emt 0:03:53]} 26. Re2 {[%emt 0:05:20]} R2b7 {[%emt 0:02:38]} 27. Rc2 {[%emt 0:01:30]} e4 {[%emt 0:01:27]} 28. Be2 {[%emt 0:02:20]} Ke5 {[%emt 0:00:35]} 29. Bc4 {[%emt 0:00:51]} f4 {[%emt 0:00:28]} 30. gxf4+ {[%emt 0:01:14]} Kxf4 {[%emt 0:00:10]} 31. Kg2 {[%emt 0:04:05]} f5 {[%emt 0:00:30]} 32. Re2 {[%emt 0:01:41]} h5 {[%emt 0:02:54]} 33. Re3 {[%emt 0:03:39]} h4 {[%emt 0:01:21]} 34. Kf1 {[%emt 0:01:35]} Rg7 {[%emt 0:05:34]} 35. Bb3 {[%emt 0:02:59]} Rbg8 {[%emt 0:04:07]} 36. Ke2 {[%emt 0:00:52]} Rg2 {[%emt 0:00:11]} 37. Rh1 {[%emt 0:01:18]} Ke5 {[%emt 0:00:33]} 38. Rh3 {[%emt 0:01:00]} R8g4 {[%emt 0:06:32]} 39. Rf1 {[%emt 0:01:29]} f4 {[%emt 0:01:01]} 40. Bc4 {[%emt 0:00:00]} f3+ {[%emt 0:01:08]} 41. Ke3 {[%emt 0:04:23]} Rf4 {[%emt 0:31:57]} *

[Event "FIDE WYCC Girls U14 2023"]
[Site "Montesilvano"]
[Date "2023.11.18"]
[Round "6.20"]
[White "Mueller, Riyanna"]
[Black "Namala, Dhanvi"]
[Result "1/2-1/2"]
[ECO "C02"]
[WhiteElo "1754"]
[BlackElo "1388"]
[Annotator "NA"]
[PlyCount "73"]
[EventDate "2023.11.13"]
[EventType "swiss"]
[EventCountry "ITA"]
[SourceTitle "playchess.com"]
[Source "ChessBase"]
[SourceQuality "1"]
[TimeControl "40/5400+30:1800+30"]

1. e4 {[%emt 0:00:03]} e6 {[%emt 0:00:02]} 2. d4 {[%emt 0:00:09]} d5 {[%emt 0:00:02]} 3. e5 {[%emt 0:00:07]} c5 {[%emt 0:00:04]} 4. c3 {[%emt 0:00:06]} Nc6 {[%emt 0:00:05]} 5. Nf3 {[%emt 0:00:08]} Bd7 {[%emt 0:00:05]} 6. Bd3 {[%emt 0:01:21]} cxd4 {[%emt 0:00:11]} 7. cxd4 {[%emt 0:00:09]} Qb6 {[%emt 0:00:08]} 8. Bc2 {[%emt 0:01:07]} Nb4 {[%emt 0:01:02]} 9. O-O {[%emt 0:02:03]} Ne7 {[%emt 0:02:24]} 10. Nc3 {[%emt 0:01:03]} Nxc2 {[%emt 0:00:46]} 11. Qxc2 {[%emt 0:00:06]} Rc8 {[%emt 0:00:50]} 12. Be3 {[%emt 0:03:20]} Nf5 {[%emt 0:02:29]} 13. a3 {[%emt 0:05:40]} Be7 {[%emt 0:01:21]} 14. Rad1 {[%emt 0:02:19]} O-O {[%emt 0:02:29]} 15. Bg5 {[%emt 0:14:06]} h6 {[%emt 0:06:03]} 16. Bxe7 {[%emt 0:00:27]} Nxe7 {[%emt 0:00:19]} 17. Qd2 {[%emt 0:01:30]} Nc6 {[%emt 0:09:36]} 18. Na4 {[%emt 0:03:31]} Qd8 {[%emt 0:02:13]} 19. Nc5 {[%emt 0:01:58]} Rc7 {[%emt 0:06:12]} 20. Rc1 {[%emt 0:05:30]} b6 {[%emt 0:03:13]} 21. Nxd7 {[%emt 0:04:32]} Qxd7 {[%emt 0:01:00]} 22. Rc3 {[%emt 0:04:03]} Rfc8 {[%emt 0:02:41]} 23. Rfc1 {[%emt 0:02:03]} Na5 {[%emt 0:03:57]} 24. Qd3 {[%emt 0:02:07]} Rxc3 {[%emt 0:07:11]} 25. Rxc3 {[%emt 0:00:16]} Rxc3 {[%emt 0:00:54]} 26. Qxc3 {[%emt 0:00:05]} Nc4 {[%emt 0:01:24]} 27. Nd2 {[%emt 0:02:41]} Qa4 {[%emt 0:10:23]} 28. Qc1 {[%emt 0:05:47]} Nxd2 {[%emt 0:05:17]} 29. Qxd2 {[%emt 0:00:08]} Qc4 {[%emt 0:01:40]} 30. h3 {[%emt 0:00:33]} Kf8 {[%emt 0:03:07]} 31. Kh2 {[%emt 0:01:14]} Ke8 {[%emt 0:06:14]} 32. Kg1 {[%emt 0:00:29]} Qb3 {[%emt 0:02:12]} 33. Qc1 {[%emt 0:03:07]} Qc4 {[%emt 0:00:37]} 34. Qd2 {[%emt 0:00:10]} a5 {[%emt 0:03:24]} 35. Qd1 {[%emt 0:02:02]} a4 {[%emt 0:01:50]} 36. Qd2 {[%emt 0:01:47]} Qb3 {[%emt 0:02:06]} 37. Qc1 {[%emt 0:00:23]} 1/2-1/2

[Event "FIDE WYCC Girls U14 2023"]
[Site "Montesilvano"]
[Date "2023.11.18"]
[Round "6.21"]
[White "Mohd Afif, Ainul Mardhiah"]
[Black "Stefan, Iulia-Cristiana"]
[Result "1/2-1/2"]
[ECO "A13"]
[WhiteElo "1478"]
[BlackElo "1748"]
[Annotator "NA"]
[PlyCount "121"]
[EventDate "2023.11.13"]
[EventType "swiss"]
[EventCountry "ITA"]
[SourceTitle "playchess.com"]
[Source "ChessBase"]
[SourceQuality "1"]
[TimeControl "40/5400+30:1800+30"]

1. c4 {[%emt 0:00:25]} e6 {[%emt 0:00:05]} 2. g3 {[%emt 0:00:15]} d5 {[%emt 0:00:06]} 3. Bg2 {[%emt 0:00:05]} Nf6 {[%emt 0:00:04]} 4. Nf3 {[%emt 0:00:12]} Bd6 {[%emt 0:00:09]} 5. d4 {[%emt 0:03:26]} h6 {[%emt 0:00:15]} 6. O-O {[%emt 0:00:31]} O-O {[%emt 0:00:06]} 7. Qc2 {[%emt 0:00:26]} b6 {[%emt 0:00:48]} 8. b3 {[%emt 0:01:25]} Bb7 {[%emt 0:00:13]} 9. Nc3 {[%emt 0:00:51]} Nbd7 {[%emt 0:00:39]} 10. Bb2 {[%emt 0:01:38]} Re8 {[%emt 0:00:37]} 11. Rfd1 {[%emt 0:06:13]} a6 {[%emt 0:11:50]} 12. Rac1 {[%emt 0:01:10]} Qe7 {[%emt 0:01:55]} 13. e3 {[%emt 0:03:30]} c5 {[%emt 0:06:17]} 14. Ne1 {[%emt 0:04:55]} cxd4 {[%emt 0:17:10]} 15. exd4 {[%emt 0:07:39]} Rac8 {[%emt 0:03:50]} 16. Qe2 {[%emt 0:04:38]} Qd8 {[%emt 0:05:22]} 17. Qf1 {[%emt 0:04:33]} Rc7 {[%emt 0:02:14]} 18. cxd5 {[%emt 0:03:58]} Nxd5 {[%emt 0:01:17]} 19. Nxd5 {[%emt 0:00:36]} exd5 {[%emt 0:00:11]} 20. Rxc7 {[%emt 0:01:03]} Qxc7 {[%emt 0:00:33]} 21. Rc1 {[%emt 0:00:52]} Qb8 {[%emt 0:09:28]} 22. Qd3 {[%emt 0:03:54]} Re7 {[%emt 0:05:49]} 23. Nc2 {[%emt 0:02:03]} Nf6 {[%emt 0:03:15]} 24. Ne3 {[%emt 0:02:07]} Re8 {[%emt 0:06:15]} 25. Qf5 {[%emt 0:09:20]} Bc8 {[%emt 0:03:41]} 26. Qf3 {[%emt 0:01:57]} Bb7 {[%emt 0:02:09]} 27. Nf5 {[%emt 0:03:58]} Qd8 {[%emt 0:03:01]} 28. Ne3 {[%emt 0:04:12]} Qd7 {[%emt 0:01:40]} 29. Qd1 {[%emt 0:02:34]} Ne4 {[%emt 0:00:39]} 30. Rc2 {[%emt 0:03:10]} Qe6 {[%emt 0:00:57]} 31. Qg4 {[%emt 0:04:24]} Qxg4 {[%emt 0:01:38]} 32. Nxg4 {[%emt 0:00:08]} Ng5 {[%emt 0:00:31]} 33. Ne3 {[%emt 0:00:58]} Ne4 {[%emt 0:00:42]} 34. Re2 {[%emt 0:04:11]} Nf6 {[%emt 0:00:58]} 35. Bf3 {[%emt 0:01:17]} Rc8 {[%emt 0:00:59]} 36. Rc2 {[%emt 0:01:28]} Rxc2 {[%emt 0:00:39]} 37. Nxc2 {[%emt 0:00:05]} Kf8 {[%emt 0:00:22]} 38. Kf1 {[%emt 0:00:36]} Ke7 {[%emt 0:00:08]} 39. Ne3 {[%emt 0:02:04]} g6 {[%emt 0:00:45]} 40. Ke2 {[%emt 0:00:00]} Kd7 {[%emt 0:00:00]} 41. Ng4 {[%emt 0:04:19]} Nxg4 {[%emt 0:02:49]} 42. Bxg4+ {[%emt 0:00:33]} f5 {[%emt 0:01:41]} 43. Bh3 {[%emt 0:00:50]} Ke6 {[%emt 0:02:08]} 44. f4 {[%emt 0:00:28]} Bc6 {[%emt 0:02:52]} 45. Kd2 {[%emt 0:01:28]} Bb5 {[%emt 0:01:29]} 46. a3 {[%emt 0:01:10]} a5 {[%emt 0:04:44]} 47. Bg2 {[%emt 0:01:00]} g5 {[%emt 0:04:51]} 48. Ke3 {[%emt 0:01:07]} g4 {[%emt 0:04:57]} 49. h3 {[%emt 0:00:54]} h5 {[%emt 0:00:24]} 50. hxg4 {[%emt 0:00:14]} hxg4 {[%emt 0:09:56]} 51. Bc1 {[%emt 0:00:42]} Ba6 {[%emt 0:00:27]} 52. Bb2 {[%emt 0:00:21]} Be7 {[%emt 0:00:52]} 53. Bc1 {[%emt 0:05:25]} Kd6 {[%emt 0:00:39]} 54. Bb2 {[%emt 0:01:19]} Kc6 {[%emt 0:00:29]} 55. Bc1 {[%emt 0:01:04]} Bb5 {[%emt 0:00:19]} 56. Bb2 {[%emt 0:00:47]} a4 {[%emt 0:00:49]} 57. b4 {[%emt 0:01:01]} Bc4 {[%emt 0:00:24]} 58. Bc3 {[%emt 0:00:39]} Kb5 {[%emt 0:00:14]} 59. Bd2 {[%emt 0:01:15]} Bd6 {[%emt 0:00:33]} 60. Bc3 {[%emt 0:01:03]} Ba2 {[%emt 0:02:19]} 61. Bf1+ {[%emt 0:01:24]} 1/2-1/2

[Event "FIDE WYCC Girls U14 2023"]
[Site "Montesilvano"]
[Date "2023.11.18"]
[Round "6.22"]
[White "Li, Anna Sofie"]
[Black "Orazalina, Nursulu"]
[Result "*"]
[ECO "B34"]
[WhiteElo "1722"]
[BlackElo "1428"]
[Annotator "NA"]
[PlyCount "74"]
[EventDate "2023.11.13"]
[EventType "swiss"]
[EventCountry "ITA"]
[SourceTitle "playchess.com"]
[Source "ChessBase"]
[SourceQuality "1"]
[TimeControl "40/5400+30:1800+30"]

1. e4 {[%emt 0:00:03]} c5 {[%emt 0:00:04]} 2. Nf3 {[%emt 0:00:05]} Nc6 {[%emt 0:00:04]} 3. d4 {[%emt 0:00:06]} cxd4 {[%emt 0:00:05]} 4. Nxd4 {[%emt 0:00:05]} Nf6 {[%emt 0:00:06]} 5. Nc3 {[%emt 0:00:05]} e5 {[%emt 0:00:08]} 6. Ndb5 {[%emt 0:00:06]} d6 {[%emt 0:00:06]} 7. Nd5 {[%emt 0:00:10]} Nxd5 {[%emt 0:00:06]} 8. exd5 {[%emt 0:00:07]} Nb8 {[%emt 0:00:08]} 9. c4 {[%emt 0:00:48]} Be7 {[%emt 0:00:11]} 10. Be3 {[%emt 0:00:52]} a6 {[%emt 0:02:34]} 11. Nc3 {[%emt 0:00:43]} O-O {[%emt 0:01:21]} 12. Bd3 {[%emt 0:02:12]} f5 {[%emt 0:00:49]} 13. f3 {[%emt 0:01:49]} Bh4+ {[%emt 0:23:30]} 14. g3 {[%emt 0:02:29]} Bg5 {[%emt 0:00:10]} 15. Bf2 {[%emt 0:05:39]} Nd7 {[%emt 0:07:57]} 16. Qc2 {[%emt 0:04:58]} Qf6 {[%emt 0:07:24]} 17. h4 {[%emt 0:05:35]} Bh6 {[%emt 0:09:15]} 18. g4 {[%emt 0:02:44]} e4 {[%emt 0:08:20]} 19. g5 {[%emt 0:23:17]} exd3 {[%emt 0:00:09]} 20. Qd2 {[%emt 0:00:39]} Ne5 {[%emt 0:10:51]} 21. Qf4 {[%emt 0:01:53]} Bxg5 {[%emt 0:01:40]} 22. hxg5 {[%emt 0:00:49]} Qxg5 {[%emt 0:00:05]} 23. Qxg5 Nxf3+ {[%emt 0:00:09]} 24. Kd1 {[%emt 0:02:47]} Nxg5 {[%emt 0:00:06]} 25. Kd2 {[%emt 0:02:10]} Ne4+ {[%emt 0:01:14]} 26. Nxe4 {[%emt 0:01:17]} fxe4 {[%emt 0:00:04]} 27. Bg3 {[%emt 0:01:37]} Rf6 {[%emt 0:00:14]} 28. Rhf1 {[%emt 0:02:56]} Rg6 {[%emt 0:01:09]} 29. Bf4 {[%emt 0:00:17]} Bg4 {[%emt 0:00:25]} 30. b4 {[%emt 0:01:39]} Rc8 {[%emt 0:00:41]} 31. Rac1 {[%emt 0:00:32]} Be2 {[%emt 0:06:57]} 32. Rf2 {[%emt 0:04:00]} b6 {[%emt 0:06:57]} 33. Be3 {[%emt 0:02:13]} Rb8 {[%emt 0:00:08]} 34. Bd4 {[%emt 0:03:52]} Bf3 {[%emt 0:00:46]} 35. a4 {[%emt 0:03:33]} Rg5 {[%emt 0:06:05]} 36. Be3 {[%emt 0:01:58]} Rf5 {[%emt 0:00:21]} 37. Bd4 {[%emt 0:01:52]} a5 {[%emt 0:02:04]} *

[Event "FIDE WYCC Girls U14 2023"]
[Site "Montesilvano"]
[Date "2023.11.18"]
[Round "6.23"]
[White "Nguyen, Thuy Linh"]
[Black "Jankovic, Tamara"]
[Result "0-1"]
[ECO "E67"]
[WhiteElo "1398"]
[BlackElo "1711"]
[Annotator "NA"]
[PlyCount "66"]
[EventDate "2023.11.13"]
[EventType "swiss"]
[EventCountry "ITA"]
[SourceTitle "playchess.com"]
[Source "ChessBase"]
[SourceQuality "1"]
[TimeControl "40/5400+30:1800+30"]

1. d4 {[%emt 0:00:02]} Nf6 {[%emt 0:00:05]} 2. Nf3 {[%emt 0:00:07]} g6 {[%emt 0:00:11]} 3. g3 {[%emt 0:00:34]} Bg7 {[%emt 0:00:06]} 4. Bg2 {[%emt 0:00:07]} O-O {[%emt 0:00:07]} 5. c4 d6 {[%emt 0:00:08]} 6. Nc3 {[%emt 0:01:45]} Nbd7 {[%emt 0:00:09]} 7. e4 {[%emt 0:00:28]} e5 {[%emt 0:00:10]} 8. d5 {[%emt 0:00:31]} Nc5 {[%emt 0:00:19]} 9. Qc2 {[%emt 0:00:15]} a5 {[%emt 0:00:08]} 10. O-O {[%emt 0:00:12]} b6 {[%emt 0:01:09]} 11. Ne1 {[%emt 0:03:40]} Ne8 {[%emt 0:06:13]} 12. Nd3 {[%emt 0:01:48]} Nxd3 {[%emt 0:05:30]} 13. Qxd3 {[%emt 0:00:15]} f5 {[%emt 0:00:08]} 14. f4 {[%emt 0:01:05]} fxe4 {[%emt 0:07:43]} 15. Bxe4 {[%emt 0:08:55]} Bh3 {[%emt 0:02:12]} 16. Rf2 {[%emt 0:01:39]} Nf6 {[%emt 0:01:22]} 17. fxe5 {[%emt 0:02:27]} Ng4 {[%emt 0:07:07]} 18. Rxf8+ {[%emt 0:09:16]} Qxf8 {[%emt 0:03:54]} 19. Qe2 {[%emt 0:03:32]} Bxe5 {[%emt 0:03:11]} 20. Nb5 {[%emt 0:04:48]} Qf6 {[%emt 0:09:03]} 21. Be3 {[%emt 0:01:49]} Bxb2 {[%emt 0:10:10]} 22. Rb1 {[%emt 0:03:15]} Re8 {[%emt 0:08:31]} 23. Qxb2 {[%emt 0:12:11]} Qxb2 {[%emt 0:07:33]} 24. Rxb2 {[%emt 0:00:08]} Rxe4 {[%emt 0:10:11]} 25. Bd2 {[%emt 0:00:16]} Re7 {[%emt 0:02:12]} 26. Bc3 {[%emt 0:05:26]} Rf7 {[%emt 0:01:22]} 27. Rb1 {[%emt 0:00:25]} Rf2 {[%emt 0:01:02]} 28. Bd4 {[%emt 0:00:13]} Rg2+ {[%emt 0:00:54]} 29. Kh1 {[%emt 0:00:11]} Rxh2+ {[%emt 0:00:10]} 30. Kg1 {[%emt 0:00:03]} Rd2 {[%emt 0:01:32]} 31. Nxc7 {[%emt 0:02:34]} Rxd4 {[%emt 0:00:45]} 32. Ne6 {[%emt 0:00:10]} Rd3 {[%emt 0:02:44]} 33. Rxb6 {[%emt 0:00:18]} Rb3 0-1

[Event "FIDE WYCC Girls U14 2023"]
[Site "Montesilvano"]
[Date "2023.11.18"]
[Round "6.24"]
[White "Cutiyog, Jirah Floravie"]
[Black "Huang, Jolie"]
[Result "1-0"]
[ECO "B20"]
[WhiteElo "1305"]
[BlackElo "1680"]
[Annotator "NA"]
[PlyCount "85"]
[EventDate "2023.11.13"]
[EventType "swiss"]
[EventCountry "ITA"]
[SourceTitle "playchess.com"]
[Source "ChessBase"]
[SourceQuality "1"]
[TimeControl "40/5400+30:1800+30"]

1. e4 {[%emt 0:00:02]} c5 {[%emt 0:00:08]} 2. Be2 {[%emt 0:00:18]} Nc6 {[%emt 0:00:22]} 3. f4 {[%emt 0:00:15]} g6 {[%emt 0:01:35]} 4. Nf3 {[%emt 0:00:08]} Bg7 {[%emt 0:00:25]} 5. O-O {[%emt 0:00:18]} d6 {[%emt 0:02:01]} 6. d3 {[%emt 0:00:46]} Nf6 {[%emt 0:00:37]} 7. Qe1 {[%emt 0:00:32]} Bd7 {[%emt 0:09:32]} 8. a3 {[%emt 0:06:02]} b5 {[%emt 0:03:21]} 9. Qh4 {[%emt 0:01:33]} Qb6 {[%emt 0:02:42]} 10. Kh1 {[%emt 0:02:02]} a5 {[%emt 0:04:14]} 11. Nc3 {[%emt 0:04:34]} e6 {[%emt 0:08:41]} 12. e5 {[%emt 0:07:39]} dxe5 {[%emt 0:07:53]} 13. fxe5 {[%emt 0:02:23]} Nd5 {[%emt 0:02:28]} 14. Nxd5 {[%emt 0:01:11]} exd5 {[%emt 0:00:15]} 15. Bh6 {[%emt 0:00:45]} Bxh6 {[%emt 0:03:45]} 16. Qxh6 {[%emt 0:05:30]} O-O-O {[%emt 0:05:50]} 17. Qg7 {[%emt 0:04:26]} Rhe8 {[%emt 0:15:42]} 18. Qxf7 {[%emt 0:10:24]} Nxe5 {[%emt 0:00:21]} 19. Nxe5 {[%emt 0:04:06]} Rxe5 {[%emt 0:00:18]} 20. Bf3 {[%emt 0:00:29]} Qd6 {[%emt 0:05:53]} 21. Qxh7 {[%emt 0:01:13]} Rde8 {[%emt 0:00:42]} 22. Qh4 {[%emt 0:01:20]} Qe6 {[%emt 0:02:14]} 23. Qf2 {[%emt 0:01:53]} Re3 {[%emt 0:03:12]} 24. Qd2 {[%emt 0:02:35]} a4 {[%emt 0:04:16]} 25. Qc3 {[%emt 0:06:47]} c4 {[%emt 0:03:39]} 26. Qd4 {[%emt 0:00:51]} Bc6 {[%emt 0:01:49]} 27. Bg4 {[%emt 0:00:28]} Kb7 {[%emt 0:01:11]} 28. Bxe6 {[%emt 0:00:09]} R3xe6 {[%emt 0:00:13]} 29. Rf7+ {[%emt 0:00:21]} Kc8 {[%emt 0:00:12]} 30. Qb6 {[%emt 0:00:38]} Bd7 {[%emt 0:01:50]} 31. Qc5+ {[%emt 0:00:18]} Bc6 {[%emt 0:00:49]} 32. Qa7 {[%emt 0:00:25]} Re1+ {[%emt 0:00:26]} 33. Rf1 {[%emt 0:00:26]} R1e7 {[%emt 0:00:19]} 34. Qc5 {[%emt 0:00:15]} Kb7 {[%emt 0:00:13]} 35. h3 {[%emt 0:00:19]} Rc7 {[%emt 0:00:56]} 36. Rae1 {[%emt 0:00:45]} Rec8 {[%emt 0:00:23]} 37. Rf6 {[%emt 0:00:52]} Bd7 {[%emt 0:01:42]} 38. Rb6+ {[%emt 0:01:01]} Ka8 {[%emt 0:00:19]} 39. Ra6+ {[%emt 0:00:10]} Kb8 {[%emt 0:00:11]} 40. Qb6+ {[%emt 0:00:00]} Rb7 {[%emt 0:00:00]} 41. Qd6+ {[%emt 0:00:31]} Rcc7 {[%emt 0:01:09]} 42. Re7 {[%emt 0:00:23]} Bc8 {[%emt 0:00:13]} 43. Rc6 {[%emt 0:00:35]} 1-0